bitfinex-derivatives/quotes_SOLF0:USTF0_20240818
["timestamp","ask_amount","ask_price","bid_price","bid_amount"]
[1723944635207,1.7607,141.97,141.95,0.04722348]
[1723944641406,1.80813162,141.98,141.95,0.04722348]
[1723944647218,0.04753162,141.98,141.95,1.80812348]
[1723944647422,0.04753162,141.98,141.96,8.67]
[1723944647717,0.04753162,141.98,141.96,10.4307]
[1723944648318,0.04753162,141.98,141.97,1.7606]
[1723944653218,1.7602,142.01,141.99,8.67]
[1723944653422,4.3,142.05,142.0,8.67]
[1723944653621,8.67,142.06,142.0,8.67]
[1723944654019,3.53036413,142.05,142.0,8.67]
[1723944654324,0.04710732,142.04,142.01,0.04831857]
[1723944654520,1.76,142.02,142.01,0.04831857]
[1723944658416,1.76,142.02,141.95,4.3]
[1723944658417,8.67,142.02,141.95,4.3]
[1723944658620,8.67,142.0,141.94,8.67]
[1723944658817,8.67,142.0,141.94,10.4309]
[1723944659021,1.7606,141.98,141.93,12.97]
[1723944659415,3.4763662,141.97,141.89,2.6158]
[1723944659615,0.05165611,141.97,141.94,0.05110861]
[1723944660124,3.6368679,141.97,141.94,0.05110861]
[1723944660621,1.7609,141.96,141.94,0.05110861]
[1723944661223,3.6368679,141.97,141.94,8.72110861]
[1723944663025,3.60576476,141.97,141.94,8.72110861]
[1723944663922,0.05165611,141.97,141.94,8.72110861]
[1723944665632,0.05165611,141.97,141.95,8.67]
[1723944666527,0.05165611,141.97,141.96,8.67]
[1723944667824,0.05165611,141.97,141.96,10.4308]
[1723944669731,0.05165611,141.97,141.96,8.67]
[1723944670223,0.05165611,141.97,141.95,8.67]
[1723944670734,0.05165611,141.97,141.94,13.02110861]
[1723944671728,0.05165611,141.97,141.94,14.78210861]
[1723944673831,1.81235611,141.97,141.94,14.78210861]
[1723944674021,0.05165611,141.97,141.94,14.78210861]
[1723944674732,0.05165611,141.97,141.94,8.72110861]
[1723944675031,8.72165611,141.97,141.94,0.05110861]
[1723944675333,1.7609,141.95,141.94,0.05110861]
[1723944676726,1.7609,141.95,141.89,10.42270839]
[1723944676727,8.67,141.96,141.89,4.3]
[1723944676928,11.3373,141.96,141.86,7.7661847]
[1723944677126,11.3373,141.96,141.89,8.67]
[1723944677429,2.6673,141.96,141.9,8.67]
[1723944677629,1.7609,141.95,141.92,8.67]
[1723944677830,1.81078136,141.95,141.92,8.71726099]
[1723944680333,1.81078136,141.95,141.92,0.04726099]
[1723944681636,1.761,141.94,141.92,0.04726099]
[1723944683528,3.46092123,141.93,141.85,4.3]
[1723944683728,8.67,141.94,141.87,8.67]
[1723944683937,8.67,141.94,141.87,10.4318]
[1723944683938,1.7614,141.92,141.87,10.4318]
[1723944684236,3.53668724,141.91,141.87,10.4318]
[1723944684737,0.05157508,141.9,141.88,0.04723525]
[1723944685423,0.05157508,141.9,141.88,1.80893525]
[1723944686427,0.05157508,141.9,141.88,10.47893525]
[1723944688230,0.05157508,141.9,141.88,0.04723525]
[1723944689440,0.05157508,141.9,141.89,8.67]
[1723944690135,0.05157508,141.9,141.89,10.4316]
[1723944691735,0.05157508,141.9,141.89,8.67]
[1723944692727,0.05157508,141.9,141.89,10.4316]
[1723944694241,1.7612,141.93,141.89,10.4316]
[1723944694438,1.7612,141.93,141.91,8.67]
[1723944694740,1.7612,141.93,141.9,8.67]
[1723944695138,1.81504776,141.93,141.9,8.67]
[1723944695444,0.05384776,141.93,141.9,8.67]
[1723944698245,3.52498859,141.93,141.89,1.7616]
[1723944698441,3.52498859,141.93,141.89,10.4316]
[1723944699045,0.05384776,141.93,141.89,10.4316]
[1723944700549,3.55730394,141.93,141.89,10.4316]
[1723944701048,8.67,141.92,141.88,1.80893525]
[1723944702742,8.67,141.92,141.88,0.04723525]
[1723944702943,8.67,141.91,141.88,0.04723525]
[1723944703244,1.7616,141.89,141.84,1.7622]
[1723944703451,14.2552,141.92,141.86,8.67]
[1723944703639,5.5852,141.92,141.86,8.67]
[1723944703837,14.2552,141.92,141.86,8.67]
[1723944704036,1.7616,141.9,141.86,8.67]
[1723944704449,1.7616,141.9,141.87,0.05320227]
[1723944704450,0.05308026,141.89,141.87,0.05320227]
[1723944707354,0.05308026,141.89,141.88,8.67]
[1723944710152,0.05308026,141.89,141.87,0.05320227]
[1723944715055,0.05308026,141.89,141.87,1.81510227]
[1723944716656,0.05308026,141.89,141.87,0.05320227]
[1723944718554,0.05308026,141.89,141.87,8.72320227]
[1723944718757,4.3,141.95,141.88,8.67]
[1723944719062,15.6373,141.96,141.9,8.67]
[1723944719556,4.3,141.99,141.94,8.67]
[1723944719758,8.67,142.0,141.94,8.67]
[1723944720065,0.04826215,141.98,141.95,8.7194092]
[1723944722169,0.04826215,141.98,141.96,8.67]
[1723944723258,4.3,142.03,141.96,8.67]
[1723944723565,1.76,142.03,141.98,10.4305]
[1723944724456,0.05197965,142.02,141.99,0.04940404]
[1723944726357,0.05197965,142.02,141.99,1.80980404]
[1723944727062,0.05197965,142.02,141.99,0.04940404]
[1723944728360,8.67,142.01,141.76,57.7583502]
[1723944728561,8.67,142.01,141.94,12.97]
[1723944729062,1.7603,142.0,141.95,1.7608]
[1723944729359,1.7603,142.0,141.95,8.67]
[1723944729563,0.04800223,141.99,141.96,0.04447997]
[1723944730764,0.04800223,141.99,141.96,1.80527997]
[1723944731065,0.04800223,141.99,141.97,8.67]
[1723944731764,0.04800223,141.99,141.97,10.4306]
[1723944732564,0.04800223,141.99,141.98,8.67]
[1723944733161,0.04800223,141.99,141.98,10.4305]
[1723944736667,3.51208621,142.04,141.99,1.7603]
[1723944736868,12.97,142.06,142.01,8.67]
[1723944737070,1.7598,142.04,142.01,8.67]
[1723944737267,5.36195327,142.04,142.01,8.67]
[1723944737670,5.41330808,142.04,142.01,8.71938561]
[1723944738070,1.81115481,142.04,142.01,8.71938561]
[1723944738573,0.05135481,142.04,142.02,8.67]
[1723944738766,0.05135481,142.04,142.02,10.4299]
[1723944740076,0.05135481,142.04,142.02,1.7599]
[1723944740369,8.67,142.03,142.01,0.04938561]
[1723944740874,1.7604,142.0,141.95,1.7609]
[1723944741073,8.67,141.99,141.95,1.7609]
[1723944741974,0.0472203,141.98,141.96,0.0502893]
[1723944747685,0.0472203,141.98,141.96,1.8109893]
[1723944747877,0.0472203,141.98,141.96,23.4609893]
[1723944748282,0.0472203,141.98,141.97,1.7606]
[1723944748474,4.3,142.05,141.97,21.65]
[1723944748987,1.7601,142.02,141.97,21.65]
[1723944749580,0.04686036,142.01,141.98,0.04479056]
[1723944749778,0.04686036,142.01,141.99,1.7604]
[1723944749976,0.04686036,142.01,141.98,0.04479056]
[1723944751886,0.04686036,142.01,141.98,1.80529056]
[1723944757890,0.04686036,142.01,141.98,0.04479056]
[1723944759694,1.80706036,142.01,141.98,0.04479056]
[1723944759887,0.04686036,142.01,141.98,1.80519056]
[1723944760893,0.04686036,142.01,141.98,0.04479056]
[1723944761485,1.7604,142.0,141.98,0.04479056]
[1723944762786,1.80706036,142.01,141.98,8.70479056]
[1723944764800,0.04686036,142.01,141.98,8.70479056]
[1723944767794,0.04686036,142.01,141.98,10.46529056]
[1723944768195,0.04686036,142.01,141.98,8.70479056]
[1723944769295,1.80706036,142.01,141.98,8.70479056]
[1723944769695,1.80706036,142.01,141.98,0.04479056]
[1723944770898,1.7603,142.0,141.98,0.04479056]
[1723944771093,8.70686036,142.01,141.98,0.04479056]
[1723944771298,8.66,141.99,141.91,4.3]
[1723944771499,8.66,141.95,141.89,8.66]
[1723944771706,8.66,141.94,141.88,8.66]
[1723944771999,1.7612,141.93,141.88,10.4217]
[1723944772199,1.7612,141.93,141.88,8.66]
[1723944772397,0.05250053,141.92,141.89,0.04832758]
[1723944773706,0.05250053,141.92,141.89,1.80992758]
[1723944782210,0.05250053,141.92,141.89,0.04832758]
[1723944783012,1.38940053,141.92,141.89,0.04832758]
[1723944783209,4.3,141.91,141.89,0.04832758]
[1723944783912,1.7615,141.9,141.89,0.04832758]
[1723944789714,0.05250053,141.92,141.89,0.04832758]
[1723944790105,1.81380053,141.92,141.89,0.04832758]
[1723944791614,0.05250053,141.92,141.9,1.7615]
[1723944798615,8.71250053,141.92,141.9,1.7615]
[1723944800210,8.71250053,141.92,141.89,0.04832758]
[1723944801813,8.71250053,141.92,141.91,1.7614]
[1723944805016,0.05250053,141.92,141.91,1.7614]
[1723944809219,0.05250053,141.92,141.89,0.04832758]
[1723944816629,1.81380053,141.92,141.89,0.04832758]
[1723944817027,10.47380053,141.92,141.89,0.04832758]
[1723944818030,10.4214,141.91,141.89,0.04832758]
[1723944819130,1.7615,141.9,141.89,0.04832758]
[1723944820633,8.66,141.9,141.81,4.3]
[1723944820833,8.66,141.87,141.81,4.3]
[1723944821633,0.05418785,141.85,141.83,0.04721538]
[1723944821834,0.05418785,141.85,141.83,1.80951538]
[1723944826133,8.71418785,141.85,141.83,0.04721538]
[1723944826639,1.7623,141.84,141.83,0.04721538]
[1723944829141,14.01925549,141.85,141.83,0.04721538]
[1723944829337,8.71418785,141.85,141.83,0.04721538]
[1723944829535,0.05418785,141.85,141.83,0.04721538]
[1723944831842,1.81638785,141.85,141.83,0.04721538]
[1723944832946,10.47638785,141.85,141.83,0.04721538]
[1723944838251,0.05418785,141.85,141.83,0.04721538]
[1723944839847,1.81628785,141.85,141.83,0.04721538]
[1723944841343,8.66,141.84,141.83,0.04721538]
[1723944842037,8.66,141.84,141.8,1.7627]
[1723944843649,8.66,141.84,141.81,0.04597004]
[1723944847757,8.66,141.83,141.81,0.04597004]
[1723944848955,10.4225,141.83,141.81,0.04597004]
[1723944852255,8.66,141.83,141.81,0.04597004]
[1723944861456,10.4224,141.83,141.81,0.04597004]
[1723944861655,8.66,141.82,141.74,1.2995]
[1723944861963,8.66,141.8,141.74,1.2995]
[1723944862260,8.66,141.78,141.72,1.3621]
[1723944862561,8.66,141.78,141.72,10.0221]
[1723944862954,0.04962842,141.76,141.74,1.78537793]
[1723944867663,8.66,141.75,141.68,1.3024]
[1723944867960,8.66,141.74,141.68,14.2624]
[1723944868367,8.66,141.74,141.7,1.7639]
[1723944868368,10.4235,141.74,141.7,1.7639]
[1723944868667,0.05383062,141.73,141.7,1.7639]
[1723944868964,0.05383062,141.73,141.68,14.2624]
[1723944868965,0.05383062,141.73,141.71,1.7639]
[1723944869555,1.7638,141.72,141.68,1.2872]
[1723944869764,8.66,141.71,141.68,1.2872]
[1723944870165,10.47753062,141.73,141.69,1.764]
[1723944872665,8.66,141.71,141.68,1.7642]
[1723944873368,10.4239,141.71,141.68,1.7642]
[1723944873564,10.4239,141.71,141.67,73.99457033]
[1723944873767,8.66,141.7,141.67,1.7644]
[1723944874070,8.70692288,141.7,141.66,1.7644]
[1723944874266,0.04692288,141.7,141.66,8.66]
[1723944874762,0.04692288,141.7,141.68,1.7642]
[1723944877373,0.04692288,141.7,141.69,1.7641]
[1723944877572,0.04692288,141.7,141.67,8.66]
[1723944878073,0.04692288,141.7,141.68,1.7642]
[1723944878270,0.04692288,141.7,141.67,8.66]
[1723944879773,0.04692288,141.7,141.69,1.7641]
[1723944881572,56.06037195,141.77,141.74,1.7635]
[1723944881876,56.06037195,141.77,141.68,3.56557221]
[1723944881877,8.66,141.76,141.71,8.66]
[1723944882878,0.05344831,141.75,141.73,1.7636]
[1723944883072,0.05344831,141.75,141.72,0.04692288]
[1723944883574,0.05344831,141.75,141.72,1.81062288]
[1723944884674,8.71344831,141.75,141.72,1.81062288]
[1723944886273,0.05344831,141.75,141.74,1.7635]
[1723944888777,0.05344831,141.75,141.72,0.04692288]
[1723944889678,0.05344831,141.75,141.74,1.7635]
[1723944894983,0.05344831,141.75,141.73,1.7636]
[1723944896986,0.05344831,141.75,141.74,1.7635]
[1723944898589,5.5813,141.83,141.74,8.66]
[1723944898885,8.66,141.82,141.76,8.66]
[1723944899087,8.66,141.82,141.78,1.7629]
[1723944899483,0.04670055,141.81,141.79,0.05348398]
[1723944902585,0.04670055,141.81,141.8,1.7628]
[1723944912097,8.66,141.87,141.83,1.7624]
[1723944912702,10.422,141.87,141.83,1.7624]
[1723944913196,0.04935564,141.86,141.84,0.0495495]
[1723944915507,8.70935564,141.86,141.84,0.0495495]
[1723944916801,0.04935564,141.86,141.84,0.0495495]
[1723944928517,8.70935564,141.86,141.65,7.052]
[1723944928809,3.53948942,141.87,141.65,7.052]
[1723944928810,8.66,141.83,141.77,12.96]
[1723944929025,8.66,141.83,141.8,1.7626]
[1723944929711,8.71298715,141.83,141.8,1.81499591]
[1723944934411,0.05298715,141.83,141.8,1.81499591]
[1723944934612,0.05298715,141.83,141.81,1.7626]
[1723944938014,0.05298715,141.83,141.82,1.7625]
[1723944941627,1.3096,141.88,141.84,1.7622]
[1723944941921,3.0714,141.88,141.84,1.7622]
[1723944942724,0.04663651,141.87,141.85,0.04744831]
[1723944944917,14.00460484,141.87,141.85,0.04744831]
[1723944945121,14.00460484,141.87,141.78,1.2998]
[1723944945122,8.66,141.86,141.78,9.9598]
[1723944945326,3.58270484,141.87,141.78,9.9598]
[1723944945327,8.66,141.84,141.79,4.28]
[1723944945716,10.4223,141.84,141.8,1.7627]
[1723944946117,0.04823211,141.83,141.81,0.05235262]
[1723944948730,0.04823211,141.83,141.81,1.81495262]
[1723944949032,226.0,141.99,141.82,8.66]
[1723944949233,8.66,141.9,141.84,8.66]
[1723944949929,8.66,141.9,141.85,0.05389985]
[1723944950127,0.05024674,141.88,141.85,0.05389985]
[1723944950535,1.81204674,141.88,141.85,0.05389985]
[1723944953628,8.66,141.86,141.85,0.05389985]
[1723944954032,8.66,141.84,141.8,4.28]
[1723944954232,8.66,141.84,141.81,1.7625]
[1723944954930,8.70814872,141.84,141.81,1.81302029]
[1723944958132,10.47044872,141.84,141.81,1.81302029]
[1723944959041,10.47044872,141.84,141.81,0.05052029]
[1723944959434,8.66,141.83,141.81,0.05052029]
[1723944960342,0.04814872,141.84,141.81,8.71052029]
[1723944960930,0.04814872,141.84,141.81,1.81312029]
[1723944961136,8.70814872,141.84,141.81,0.05052029]
[1723944962741,1.7624,141.83,141.81,0.05052029]
[1723944964037,10.4225,141.82,141.81,0.05052029]
[1723944964245,8.66,141.8,141.76,1.7632]
[1723944964743,1.7629,141.79,141.75,1.7633]
[1723944965236,0.05256704,141.78,141.76,0.04467405]
[1723944965437,1.7631,141.77,141.76,0.04467405]
[1723944965641,8.66,141.77,141.7,4.28]
[1723944965837,8.66,141.76,141.7,4.28]
[1723944966238,8.66,141.74,141.7,4.28]
[1723944966630,0.05187065,141.73,141.7,4.28]
[1723944966834,1.81557065,141.73,141.7,4.28]
[1723944967432,0.05187065,141.73,141.7,4.28]
[1723944968737,0.05187065,141.73,141.7,6.044]
[1723944976546,0.05187065,141.73,141.7,1.764]
[1723944980255,0.05187065,141.73,141.69,8.66]
[1723944980845,0.05187065,141.73,141.72,1.7638]
[1723944985547,0.05187065,141.73,141.71,1.7638]
[1723944993152,0.05187065,141.73,141.69,8.66]
[1723944993847,0.05187065,141.73,141.69,12.10344978]
[1723944994653,0.05187065,141.73,141.72,1.7638]
[1723944995251,0.05187065,141.73,141.71,1.7638]
[1723944998259,0.05187065,141.73,141.7,1.764]
[1723944999559,10.47557065,141.73,141.69,1.7641]
[1723944999761,10.4237,141.73,141.69,1.7641]
[1723944999958,0.05002629,141.72,141.69,1.7641]
[1723945001055,8.66,141.71,141.69,1.7641]
[1723945002858,10.4239,141.71,141.67,4.28]
[1723945003057,8.66,141.7,141.67,1.7643]
[1723945007766,10.424,141.7,141.65,12.94]
[1723945007966,0.05301054,141.69,141.65,12.94]
[1723945008169,0.05301054,141.69,141.65,4.28]
[1723945008669,0.05301054,141.69,141.67,1.7643]
[1723945011269,0.05301054,141.69,141.65,4.28]
[1723945011471,8.66,141.68,141.62,4.28]
[1723945011969,10.4243,141.68,141.62,4.28]
[1723945012672,8.66,141.67,141.64,1.7647]
[1723945012875,8.66,141.67,141.62,4.28]
[1723945013070,0.05384185,141.66,141.62,4.28]
[1723945013775,0.05384185,141.66,141.65,1.7646]
[1723945014569,8.66,141.71,141.64,8.66]
[1723945015474,0.05266735,141.69,141.67,1.7643]
[1723945017277,0.05266735,141.69,141.68,1.7642]
[1723945021074,0.05266735,141.69,141.67,1.7643]
[1723945024376,0.05266735,141.69,141.66,0.04771123]
[1723945024377,8.66,141.68,141.66,1.81221123]
[1723945025877,0.05266735,141.69,141.66,1.81221123]
[1723945026186,8.71266735,141.69,141.67,1.7643]
[1723945027873,0.05266735,141.69,141.67,1.7643]
[1723945028081,8.71266735,141.69,141.67,1.7643]
[1723945029880,8.71266735,141.69,141.66,1.81211123]
[1723945030185,8.66,141.67,141.5,379.20506876]
[1723945030383,8.66,141.64,141.62,1.7649]
[1723945031284,8.71085542,141.64,141.62,1.7649]
[1723945034291,0.05085542,141.64,141.63,1.7649]
[1723945034484,8.66,141.67,141.61,8.66]
[1723945034686,0.04467641,141.65,141.61,9.9333]
[1723945034877,0.04467641,141.65,141.61,1.2733]
[1723945035082,0.04467641,141.65,141.61,9.9333]
[1723945035586,0.04467641,141.65,141.61,11.2889]
[1723945035783,0.04467641,141.65,141.62,3.56012393]
[1723945036890,0.04467641,141.65,141.64,1.7647]
[1723945056205,1.3169,141.7,141.67,1.7644]
[1723945056396,8.66,141.7,141.64,8.66]
[1723945056601,1.7638,141.72,141.65,8.66]
[1723945056797,10.4238,141.72,141.65,8.66]
[1723945057104,10.4238,141.72,141.68,1.7642]
[1723945057502,0.04904979,141.7,141.68,1.7642]
[1723945061410,0.04904979,141.7,141.69,1.7641]
[1723945061911,8.66,141.76,141.69,8.66]
[1723945062107,3.49523815,141.78,141.69,8.66]
[1723945062303,8.66,141.77,141.69,8.66]
[1723945062616,10.4232,141.77,141.73,1.7635]
[1723945063014,0.05320204,141.76,141.74,0.05318614]
[1723945064817,0.05320204,141.76,141.74,1.81668614]
[1723945065812,0.05320204,141.76,141.74,0.05318614]
[1723945066117,8.66,141.81,141.74,8.71318614]
[1723945067212,0.04655744,141.79,141.74,8.71318614]
[1723945067514,8.70655744,141.79,141.74,0.05318614]
[1723945067718,8.66,141.78,141.74,0.05318614]
[1723945068121,10.423,141.78,141.74,1.81658614]
[1723945069519,1.80945744,141.79,141.76,1.7632]
[1723945070015,10.46945744,141.79,141.76,1.7632]
[1723945070425,8.70655744,141.79,141.76,1.7632]
[1723945072122,10.423,141.78,141.74,1.81668614]
[1723945072423,8.66,141.75,141.74,0.05318614]
[1723945073426,8.71130781,141.76,141.74,0.05318614]
[1723945074120,0.05130781,141.76,141.74,0.05318614]
[1723945075023,0.05130781,141.76,141.75,1.7634]
[1723945075816,0.05130781,141.76,141.74,0.05318614]
[1723945076625,0.05130781,141.76,141.74,1.81668614]
[1723945076827,8.71130781,141.76,141.74,1.81668614]
[1723945078332,0.05130781,141.76,141.74,1.81668614]
[1723945081131,0.05130781,141.76,141.74,0.05318614]
[1723945082734,0.05130781,141.76,141.74,1.81668614]
[1723945083132,0.05130781,141.76,141.75,1.7634]
[1723945083727,8.66,141.8,141.75,1.7634]
[1723945084226,1.763,141.79,141.75,1.7634]
[1723945084427,8.66,141.78,141.74,1.81668614]
[1723945085036,0.05208314,141.77,141.74,1.81668614]
[1723945085333,8.66,141.75,141.74,0.05318614]
[1723945086432,1.7633,141.76,141.74,0.05318614]
[1723945088235,8.71208314,141.77,141.74,0.05318614]
[1723945088236,10.47528314,141.77,141.74,0.05318614]
[1723945089235,1.81528314,141.77,141.74,0.05318614]
[1723945089436,0.05208314,141.77,141.74,8.71318614]
[1723945090436,0.05208314,141.77,141.76,1.7633]
[1723945099441,1.7628,141.8,141.77,1.7631]
[1723945100448,1.81357109,141.8,141.77,1.81561129]
[1723945101344,0.05077109,141.8,141.77,1.81561129]
[1723945110350,1.81357109,141.8,141.77,1.81561129]
[1723945111851,0.05077109,141.8,141.77,1.81561129]
[1723945113956,0.05077109,141.8,141.78,1.763]
[1723945116457,0.05077109,141.8,141.77,1.81561129]
[1723945118558,0.05077109,141.8,141.77,10.47561129]
[1723945118961,0.05077109,141.8,141.78,1.7629]
[1723945120563,8.66,141.85,141.79,8.66]
[1723945120855,8.66,141.86,141.79,8.66]
[1723945121558,1.7622,141.85,141.81,1.7626]
[1723945121759,0.05313565,141.84,141.81,10.47351594]
[1723945125455,0.05313565,141.84,141.82,1.7625]
[1723945130074,0.05313565,141.84,141.83,1.7624]
[1723945130261,0.02220642,141.84,141.83,10.4224]
[1723945130771,1.7617,141.89,141.83,8.66]
[1723945130969,1.7617,141.89,141.85,8.66]
[1723945131170,1.7617,141.89,141.85,12.94]
[1723945131468,1.7617,141.89,141.85,14.7021]
[1723945131975,0.04858089,141.88,141.86,0.0513435]
[1723945132459,0.04858089,141.88,141.86,1.8132435]
[1723945134067,0.04858089,141.88,141.87,10.4219]
[1723945139579,0.04858089,141.88,141.86,0.0513435]
[1723945141675,0.04858089,141.88,141.86,8.7113435]
[1723945142576,0.04858089,141.88,141.86,10.4733435]
[1723945146881,0.04858089,141.88,141.86,1.8133435]
[1723945149583,0.04858089,141.88,141.86,10.4733435]
[1723945151685,0.04858089,141.88,141.86,8.7113435]
[1723945157600,0.04858089,141.88,141.86,10.4733435]
[1723945165692,0.04858089,141.88,141.86,1.8133435]
[1723945166201,8.66,141.87,141.82,4.26]
[1723945166494,1.7623,141.84,141.8,14.6827]
[1723945167295,0.04987853,141.83,141.81,0.05229062]
[1723945168098,1.81227853,141.83,141.81,0.05229062]
[1723945168395,0.04987853,141.83,141.81,0.05229062]
[1723945169797,1.81227853,141.83,141.81,0.05229062]
[1723945170389,0.04987853,141.83,141.81,0.05229062]
[1723945180902,1.81227853,141.83,141.81,0.05229062]
[1723945181201,0.04987853,141.83,141.81,0.05229062]
[1723945181806,1.81227853,141.83,141.81,0.05229062]
[1723945189211,1.7625,141.82,141.81,0.05229062]
[1723945208823,10.4225,141.82,141.81,0.05229062]
[1723945217028,8.66,141.82,141.81,0.05229062]
[1723945217327,0.04987853,141.83,141.81,0.05229062]
[1723945217936,1.81227853,141.83,141.81,0.05229062]
[1723945219223,0.04987853,141.83,141.81,0.05229062]
[1723945220230,1.81227853,141.83,141.81,0.05229062]
[1723945220732,8.66,141.82,141.81,0.05229062]
[1723945223131,8.66,141.82,141.75,4.26]
[1723945223332,38.09618146,141.86,141.75,4.26]
[1723945223333,8.66,141.8,141.75,4.26]
[1723945224028,10.4228,141.8,141.76,1.7632]
[1723945224231,0.04460199,141.79,141.76,1.81221772]
[1723945227730,0.04460199,141.79,141.76,0.04901772]
[1723945228424,0.04460199,141.79,141.77,1.7631]
[1723945231042,0.04460199,141.79,141.76,10.47221772]
[1723945231638,0.04460199,141.79,141.76,1.81221772]
[1723945233233,0.04460199,141.79,141.76,10.47221772]
[1723945235134,0.04460199,141.79,141.77,1.7631]
[1723945243156,0.04460199,141.79,141.76,1.81221772]
[1723945243441,8.70460199,141.79,141.76,0.04901772]
[1723945243647,1.763,141.78,141.76,0.04901772]
[1723945243845,8.70460199,141.79,141.76,0.04901772]
[1723945244248,10.46750199,141.79,141.76,0.04901772]
[1723945249346,8.66,141.77,141.7,4.26]
[1723945249554,8.66,141.77,141.69,12.92]
[1723945249856,1.7634,141.75,141.71,1.7638]
[1723945250058,8.66,141.77,141.71,1.7638]
[1723945250548,8.66,141.77,141.73,0.05024976]
[1723945250549,0.04909911,141.75,141.73,0.05024976]
[1723945251245,8.70909911,141.75,141.73,0.05024976]
[1723945251444,8.66,141.74,141.73,0.05024976]
[1723945252746,10.4235,141.74,141.73,0.05024976]
[1723945256352,1.7635,141.74,141.73,0.05024976]
[1723945256755,1.7637,141.73,141.69,4.26]
[1723945256952,10.4237,141.73,141.68,1.7642]
[1723945257858,0.05104163,141.72,141.69,0.04529487]
[1723945258560,1.81484163,141.72,141.69,0.04529487]
[1723945261151,0.05104163,141.72,141.69,0.04529487]
[1723945262368,0.05104163,141.72,141.69,1.80939487]
[1723945267362,0.05104163,141.72,141.69,0.04529487]
[1723945267559,1.81484163,141.72,141.69,0.04529487]
[1723945277660,0.05104163,141.72,141.7,8.66]
[1723945278860,0.05104163,141.72,141.7,10.4239]
[1723945279667,0.05104163,141.72,141.71,1.7639]
[1723945280063,1.3523,141.77,141.7,8.66]
[1723945280268,1.3523,141.77,141.72,1.7637]
[1723945280269,10.0123,141.77,141.72,1.7637]
[1723945280676,1.7634,141.75,141.72,1.7637]
[1723945281261,1.81001654,141.75,141.72,1.81725101]
[1723945281466,0.04661654,141.75,141.72,1.81725101]
[1723945284078,0.04661654,141.75,141.73,1.7636]
[1723945286473,0.04661654,141.75,141.72,1.81725101]
[1723945288779,8.70661654,141.75,141.72,1.81725101]
[1723945289578,10.47001654,141.75,141.72,0.05355101]
[1723945301192,0.04661654,141.75,141.72,1.81725101]
[1723945301495,0.04661654,141.75,141.72,0.05355101]
[1723945302689,0.04661654,141.75,141.73,1.7636]
[1723945306895,3.1412,141.79,141.73,12.25632346]
[1723945307095,3.1412,141.79,141.74,8.66]
[1723945307599,1.7629,141.79,141.75,1.7633]
[1723945308097,0.04693565,141.78,141.76,0.05208727]
[1723945310700,0.04693565,141.78,141.77,1.7631]
[1723945334317,0.04693565,141.78,141.76,0.05208727]
[1723945334822,8.70693565,141.78,141.76,0.05208727]
[1723945335018,8.70693565,141.78,141.64,38.08741593]
[1723945335019,8.70693565,141.78,141.71,4.26]
[1723945335318,58.627773,141.83,141.71,4.26]
[1723945335319,8.66,141.76,141.71,4.26]
[1723945335512,8.66,141.76,141.73,1.7636]
[1723945336124,0.05080548,141.76,141.73,10.46999959]
[1723945337019,0.05080548,141.76,141.74,1.7635]
[1723945347731,0.05080548,141.76,141.74,8.66]
[1723945348631,0.05080548,141.76,141.75,1.7634]
[1723945350035,0.05080548,141.76,141.74,1.7635]
[1723945363950,1.81420548,141.76,141.73,0.04639959]
[1723945364252,8.66,141.75,141.73,0.04639959]
[1723945364738,8.66,141.74,141.66,1.379]
[1723945364943,8.66,141.72,141.66,1.379]
[1723945365637,8.66,141.72,141.66,10.039]
[1723945365853,0.04822342,141.7,141.68,0.05225337]
[1723945366244,0.04822342,141.7,141.68,1.81645337]
[1723945367846,0.04822342,141.7,141.68,10.47645337]
[1723945369748,0.04822342,141.7,141.69,1.7641]
[1723945372353,0.04822342,141.7,141.68,10.47645337]
[1723945373957,0.04822342,141.7,141.68,1.81645337]
[1723945375344,0.04822342,141.7,141.68,0.05225337]
[1723945376954,1.81222342,141.7,141.68,0.05225337]
[1723945377859,0.04822342,141.7,141.68,0.05225337]